bitfinex-derivatives/quotes_SOLF0:USTF0_20250527
["timestamp","ask_amount","ask_price","bid_price","bid_amount"]
[1748370719413,5.5889,178.84,178.82,0.04238231]
[1748370722823,5.5891,178.83,178.82,0.04238231]
[1748370724321,5.5901,178.8,178.74,9.81927456]
[1748370724722,5.5901,178.8,178.73,513.54]
[1748370725022,4.0399,178.84,178.73,30.62]
[1748370725420,5.62902377,178.8,178.77,0.04215748]
[1748370726223,5.62902377,178.8,178.77,5.63295748]
[1748370728226,5.5904,178.79,178.77,5.63295748]
[1748370728921,5.5907,178.78,178.77,0.04215748]
[1748370729125,30.65882377,178.8,178.69,30.62]
[1748370729328,30.62,178.8,178.69,30.62]
[1748370729624,5.5911,178.77,178.73,5.5922]
[1748370729933,32.5791,178.8,178.73,5.5922]
[1748370730126,5.591,178.77,178.74,5.5919]
[1748370730323,0.0358711,178.76,178.74,5.5919]
[1748370731325,0.0358711,178.76,178.75,5.5916]
[1748370733121,9.6288,178.84,178.74,40.43927456]
[1748370733323,30.62,178.86,178.74,40.43927456]
[1748370733530,30.62,178.86,178.77,9.81927456]
[1748370734024,0.03768355,178.83,178.8,0.04082618]
[1748370734214,0.03768355,178.83,178.82,5.5894]
[1748370744224,0.03768355,178.83,178.8,0.04082618]
[1748370745131,5.62678355,178.83,178.8,0.04082618]
[1748370746333,5.62678355,178.83,178.8,5.63082618]
[1748370746635,0.03768355,178.83,178.8,5.63082618]
[1748370749035,0.03768355,178.83,178.8,0.04082618]
[1748370749237,5.80398355,178.83,178.73,30.62]
[1748370749438,5.5903,178.8,178.76,5.5913]
[1748370749630,5.80398355,178.83,178.73,30.62]
[1748370749833,5.7663,178.83,178.73,30.62]
[1748370750034,5.59,178.81,178.73,30.62]
[1748370750233,0.036695,178.79,178.75,0.03780641]
[1748370751439,0.036695,178.79,178.78,5.5904]
[1748370755044,0.036695,178.79,178.75,0.03780641]
[1748370755843,0.036695,178.79,178.77,5.5908]
[1748370756139,0.036695,178.79,178.75,0.03780641]
[1748370756343,0.036695,178.79,178.78,5.5907]
[1748370770151,30.58,178.86,178.84,5.5887]
[1748370770450,30.58,178.86,178.78,40.39927456]
[1748370771144,0.03758804,178.84,178.8,0.0376688]
[1748370772056,0.03758804,178.84,178.83,5.5891]
[1748370772553,0.03758804,178.84,178.8,0.0376688]
[1748370773453,5.5897,178.81,178.8,0.0376688]
[1748370775251,5.5895,178.82,178.8,0.0376688]
[1748370775462,0.03758804,178.84,178.8,0.0376688]
[1748370776352,5.5897,178.81,178.8,0.0376688]
[1748370777753,0.03758804,178.84,178.8,0.0376688]
[1748370778349,5.5892,178.83,178.8,5.6276688]
[1748370778547,0.03758804,178.84,178.8,0.0376688]
[1748370778949,5.62658804,178.84,178.81,5.5897]
[1748370780757,0.03758804,178.84,178.8,0.0376688]
[1748370781460,0.03758804,178.84,178.83,5.5891]
[1748370782760,0.03758804,178.84,178.83,2.5121]
[1748370782959,0.03758804,178.84,178.8,0.0376688]
[1748370783159,0.03758804,178.84,178.7,534.54507456]
[1748370783160,0.03758804,178.84,178.7,523.35927456]
[1748370783361,9.81927456,178.85,178.7,523.35927456]
[1748370783556,5.5895,178.82,178.73,9.81927456]
[1748370783959,30.54,178.84,178.78,5.5904]
[1748370784159,0.04160208,178.83,178.79,0.04241014]
[1748370784757,5.5898,178.81,178.79,0.04241014]
[1748370785153,5.5898,178.81,178.79,5.63271014]
[1748370785358,5.5895,178.82,178.79,0.04241014]
[1748370785958,5.5895,178.82,178.79,5.63251014]
[1748370786261,0.04160208,178.83,178.79,0.04241014]
[1748370786657,5.59,178.8,178.79,0.04241014]
[1748370786860,0.04160208,178.83,178.71,19.63852237]
[1748370787064,30.54,178.84,178.71,19.63852237]
[1748370787260,30.54,178.84,178.74,5.5917]
[1748370787960,0.03886958,178.81,178.77,0.03853]
[1748370789462,5.5907,178.78,178.77,0.03853]
[1748370809477,36.1505,178.79,178.77,0.03853]
[1748370810073,5.5907,178.78,178.77,0.03853]
[1748370810274,30.56,178.79,178.77,0.03853]
[1748370810577,0.03886958,178.81,178.77,0.03853]
[1748370810978,0.03886958,178.81,178.8,5.59]
[1748370811181,0.03886958,178.81,178.77,3.97053]
[1748370811182,0.03886958,178.81,178.77,1.96013]
[1748370811377,0.03886958,178.81,178.77,0.03853]
[1748370811583,5.59,178.8,178.78,5.5904]
[1748370811784,5.59,178.8,178.77,0.03853]
[1748370812882,5.62866958,178.81,178.77,0.03853]
[1748370813682,5.5901,178.8,178.78,5.5907]
[1748370814987,5.5904,178.79,178.77,5.62943]
[1748370815385,0.03886958,178.81,178.77,5.62943]
[1748370815686,5.5901,178.8,178.77,5.62943]
[1748370816380,0.03886958,178.81,178.77,5.62943]
[1748370816381,0.03886958,178.81,178.77,0.03853]
[1748370817391,0.03886958,178.81,178.8,5.59]
[1748370819784,0.03886958,178.81,178.79,5.5902]
[1748370820990,0.03886958,178.81,178.8,5.59]
[1748370825989,0.03886958,178.81,178.77,0.03853]
[1748370826187,30.53886958,178.81,178.77,0.03853]
[1748370826590,5.5907,178.78,178.77,0.03853]
[1748370834597,9.81927456,178.8,178.66,5.8439]
[1748370834897,9.81927456,178.77,178.66,5.8439]
[1748370835099,30.5,178.76,178.66,5.8439]
[1748370835402,30.5,178.76,178.68,5.5936]
[1748370835601,0.04005517,178.74,178.7,0.03968523]
[1748370836604,5.593,178.71,178.7,0.03968523]
[1748370836803,40.33927456,178.71,178.59,30.52]
[1748370837004,40.33927456,178.71,178.6,1.856]
[1748370837207,5.5932,178.7,178.67,5.5941]
[1748370837803,0.04069517,178.7,178.67,0.03549927]
[1748370838398,0.04069517,178.7,178.68,5.5936]
[1748370838596,0.04069517,178.7,178.67,0.03549927]
[1748370838805,0.04069517,178.7,178.68,5.5935]
[1748370839503,0.04069517,178.7,178.69,5.5935]
[1748370846511,30.50069517,178.7,178.67,0.03549927]
[1748370846714,9.81927456,178.68,178.49,11.1992]
[1748370846911,9.81927456,178.58,178.47,3.7818]
[1748370847119,9.81927456,178.58,178.5,5.5992]
[1748370847120,30.46,178.57,178.5,5.5992]
[1748370847309,32.3225,178.57,178.47,3.7818]
[1748370847512,5.5987,178.53,178.47,9.3819]
[1748370847710,0.03553514,178.54,178.5,0.03608527]
[1748370848607,5.63373514,178.54,178.5,0.03608527]
[1748370849107,0.03553514,178.54,178.5,0.03608527]
[1748370849416,9.8548097,178.54,178.5,0.03608527]
[1748370849911,5.5987,178.53,178.5,0.03608527]
[1748370850117,30.48,178.52,178.5,0.03608527]
[1748370851116,5.5991,178.51,178.5,0.03608527]
[1748370851314,9.81927456,178.51,178.4,32.4078]
[1748370852219,0.0412107,178.47,178.44,0.03937861]
[1748370852618,0.0412107,178.47,178.46,5.6007]
[1748370856326,30.48,178.55,178.46,5.6]
[1748370856523,30.48,178.55,178.45,30.48]
[1748370856710,30.48,178.55,178.46,2.0445]
[1748370857217,0.04248451,178.52,178.49,0.04013155]
[1748370858020,9.81927456,178.51,178.38,1.9004]
[1748370858222,9.81927456,178.48,178.38,1.9004]
[1748370858418,30.5,178.47,178.35,32.5445]
[1748370859117,0.0377974,178.43,178.39,0.03831439]
[1748370861021,0.0377974,178.43,178.4,5.6025]
[1748370861414,0.0377974,178.43,178.39,0.03831439]
[1748370863922,0.0377974,178.43,178.41,5.6022]
[1748370865420,0.0377974,178.43,178.4,5.6025]
[1748370867325,5.6394974,178.43,178.39,5.64111439]
[1748370869820,0.0377974,178.43,178.39,0.03831439]
[1748370870430,0.0377974,178.43,178.4,5.6024]
[1748370870823,0.0377974,178.43,178.41,5.6021]
[1748370871027,0.0377974,178.43,178.39,0.03831439]
[1748370871527,484.0,178.61,178.4,40.33927456]
[1748370871721,9.81927456,178.57,178.41,1.8926]
[1748370872627,0.04191704,178.51,178.47,0.04207488]
[1748370874224,5.5996,178.5,178.47,0.04207488]
[1748370874419,0.04191704,178.51,178.47,0.04207488]
[1748370874925,5.5995,178.5,178.47,0.04207488]
[1748370875725,5.5995,178.5,178.47,5.64237488]
[1748370876032,5.64111704,178.51,178.47,5.64237488]
[1748370876232,0.04191704,178.51,178.48,5.6]
[1748370876633,5.5994,178.5,178.47,0.04207488]
[1748370877023,0.04191704,178.51,178.47,0.04207488]
[1748370877531,0.04191704,178.51,178.5,5.5994]
[1748370878426,0.04191704,178.51,178.49,5.5995]
[1748370878632,0.04191704,178.51,178.47,0.04207488]
[1748370880029,0.04191704,178.51,178.49,5.5996]
[1748370880230,0.04191704,178.51,178.47,0.04207488]
[1748370881236,0.04191704,178.51,178.48,5.5998]
[1748370882139,0.04191704,178.51,178.49,5.5996]
[1748370882830,0.04191704,178.51,178.5,5.5994]
[1748370883435,0.04191704,178.51,178.47,0.04207488]
[1748370884035,0.04191704,178.51,178.5,5.5994]
[1748370886136,0.04191704,178.51,178.47,0.04207488]
[1748370887642,0.04191704,178.51,178.5,5.5994]
[1748370894648,5.64101704,178.51,178.48,5.6]
[1748370895744,5.5997,178.49,178.47,0.04207488]
[1748370898252,5.6,178.48,178.47,0.04207488]
[1748370900653,5.6012,178.45,178.42,5.6018]
[1748370901552,9.81927456,178.5,178.41,30.46]
[1748370901754,0.03758677,178.45,178.42,0.03679362]
[1748370902253,0.03758677,178.45,178.43,5.6014]
[1748370903159,0.03758677,178.45,178.44,5.6013]
[1748370903752,0.03758677,178.45,178.42,5.63839362]
[1748370904261,0.03758677,178.45,178.43,5.6013]
[1748370904656,0.03758677,178.45,178.42,0.03679362]
[1748370906258,0.03758677,178.45,178.44,5.6013]
[1748370906554,8.677e-05,178.45,178.44,5.6013]
[1748370914864,5.598,178.55,178.51,5.5989]
[1748370915265,30.4,178.56,178.51,5.5989]
[1748370915662,5.5984,178.54,178.5,5.5994]
[1748370915865,30.4,178.56,178.5,5.5994]
[1748370916163,5.63637807,178.54,178.5,5.64030926]
[1748370916462,0.03797807,178.54,178.5,5.64030926]
[1748370917164,5.63627807,178.54,178.5,5.64030926]
[1748370917670,5.5985,178.53,178.5,5.64030926]
[1748370919067,5.5991,178.51,178.5,0.04090926]
[1748370925771,3.8764,178.53,178.5,0.04090926]
[1748370925969,5.5988,178.52,178.5,0.04090926]
[1748370926166,1.9224,178.53,178.5,0.04090926]
[1748370926363,0.03797807,178.54,178.5,0.04090926]
[1748370926872,0.03797807,178.54,178.51,5.5989]
[1748370927075,5.63627807,178.54,178.51,5.5989]
[1748370927268,0.03797807,178.54,178.5,0.04090926]
[1748370927469,0.03797807,178.54,178.52,5.5988]
[1748370928272,0.03797807,178.54,178.53,5.5985]
[1748370928567,7.807e-05,178.54,178.53,5.5985]
[1748370931072,7.807e-05,178.54,178.53,9.5388]
[1748370932674,1.9612,178.64,178.6,5.5963]
[1748370932869,30.4,178.66,178.57,30.32]
[1748370933076,2.0448,178.69,178.57,30.32]
[1748370933275,2.0448,178.69,178.63,5.5951]
[1748370933674,5.5941,178.67,178.64,0.03777121]
[1748370934072,5.5941,178.67,178.64,5.63277121]
[1748370934577,5.5941,178.67,178.64,0.03777121]
[1748370935278,5.5941,178.67,178.64,5.63277121]
[1748370936381,5.5941,178.67,178.64,0.03777121]
[1748370937176,5.5944,178.66,178.64,0.03777121]
[1748370937576,9.85526958,178.68,178.57,30.32]
[1748370937776,5.5956,178.63,178.57,30.32]
[1748370938280,5.5956,178.63,178.59,5.5964]
[1748370938483,5.5957,178.62,178.59,5.5964]
[1748370938679,5.63260356,178.62,178.59,5.6345752]
[1748370938885,0.03690356,178.62,178.6,5.5963]
[1748370939585,0.03690356,178.62,178.61,5.596]
[1748370941789,0.03690356,178.62,178.6,5.5962]
[1748370941983,0.03690356,178.62,178.59,0.0381752]
[1748370942487,0.03690356,178.62,178.61,5.596]
[1748370946797,0.03690356,178.62,178.59,0.0381752]
[1748370948391,5.5963,178.6,178.59,0.0381752]
[1748370951192,5.5962,178.61,178.59,0.0381752]
[1748370952701,5.63260356,178.62,178.59,5.6346752]
[1748370953091,0.03690356,178.62,178.59,0.0381752]
[1748370953811,5.63270356,178.62,178.59,5.6346752]
[1748370954497,5.596,178.61,178.59,0.0381752]
[1748370955002,5.5963,178.6,178.59,0.0381752]
[1748370955297,11.88767812,178.62,178.53,30.3]
[1748370955496,11.85077456,178.62,178.5,483.78]
[1748370956093,0.0383535,178.58,178.54,0.03644476]
[1748370956497,5.5978,178.56,178.54,0.03644476]
[1748370956906,0.0383535,178.58,178.46,3.8135]
[1748370957097,5.5988,178.53,178.46,3.8135]
[1748370957295,40.11927456,178.59,178.46,3.8135]
[1748370957700,5.598,178.55,178.52,5.5986]
[1748370957904,5.598,178.55,178.52,5.63792857]
[1748370958100,0.03581202,178.55,178.52,0.03932857]
[1748370959712,5.5984,178.54,178.52,0.03932857]
[1748370960705,5.63381202,178.55,178.52,5.63802857]
[1748370960912,0.03581202,178.55,178.52,0.03932857]
[1748370962315,0.03581202,178.55,178.53,5.5983]
[1748370963015,0.03581202,178.55,178.54,5.5982]
[1748370963202,0.03581202,178.55,178.52,0.03932857]
[1748370963406,0.03581202,178.55,178.53,5.5984]
[1748370966417,0.03581202,178.55,178.54,5.5982]
[1748370968115,0.03581202,178.55,178.53,5.5984]
[1748370968314,5.63371202,178.55,178.52,0.03932857]
[1748370969120,5.63371202,178.55,178.52,5.63792857]
[1748370969320,5.63371202,178.55,178.52,0.03932857]
[1748370970320,5.63371202,178.55,178.53,5.5985]
[1748370970516,0.03581202,178.55,178.52,0.03932857]
[1748370971121,5.5985,178.53,178.52,0.03932857]
[1748370974129,5.5985,178.53,178.43,9.81927456]
[1748370974130,30.24,178.53,178.41,513.82]
[1748370974319,30.24,178.53,178.44,5.6013]
[1748370974320,9.81927456,178.51,178.44,5.6013]
[1748370974520,9.81927456,178.51,178.41,513.82]
[1748370974724,5.6003,178.48,178.41,513.82]
[1748370974930,5.6003,178.48,178.45,5.601]
[1748370975130,0.04099825,178.48,178.45,5.62925787]
[1748370975328,5.6004,178.47,178.45,0.02825787]
[1748370975523,0.04099825,178.48,178.45,0.02825787]
[1748370976131,5.6006,178.47,178.45,0.02825787]
[1748370976633,5.6006,178.47,178.45,5.62915787]
[1748370978030,5.64119825,178.48,178.45,5.62915787]
[1748370978633,0.04099825,178.48,178.45,0.02825787]
[1748370979432,5.6006,178.47,178.45,0.02825787]
[1748370980434,5.6006,178.47,178.45,5.62925787]
[1748370980941,5.64119825,178.48,178.45,0.02825787]
[1748370982230,5.64119825,178.48,178.45,5.62915787]
[1748370983037,0.04099825,178.48,178.45,0.02825787]
[1748370983636,5.6007,178.46,178.45,0.02825787]
[1748370987929,40.12027281,178.48,178.45,0.02825787]
[1748370988334,5.6007,178.46,178.45,0.02825787]
[1748370988533,40.12027281,178.48,178.37,30.26]
[1748370988839,40.12027281,178.48,178.38,5.6031]
[1748370988840,5.6022,178.42,178.38,5.6031]
[1748370989238,9.81927456,178.44,178.35,1.9417]
[1748370989436,5.63805391,178.41,178.37,5.6034]
[1748370989737,5.63805391,178.41,178.35,1.9417]
[1748370990037,9.85482847,178.41,178.29,30.26]
[1748370990240,0.04268852,178.37,178.29,30.26]
[1748370991141,0.04268852,178.37,178.36,5.6039]
[1748371000342,8.852e-05,178.37,178.36,5.6039]
[1748371000743,8.852e-05,178.37,178.36,9.6556]
[1748371002546,8.852e-05,178.37,178.36,5.6039]
[1748371003548,8.852e-05,178.37,178.35,5.64384814]
[1748371003851,8.852e-05,178.37,178.35,0.03974814]
[1748371004056,5.60368852,178.37,178.35,0.03974814]
[1748371005148,8.852e-05,178.37,178.35,5.64374814]
[1748371007052,5.60358852,178.37,178.35,5.64374814]
[1748371007457,8.852e-05,178.37,178.35,5.64374814]
[1748371007754,8.852e-05,178.37,178.36,5.6038]
[1748371008152,8.852e-05,178.37,178.35,5.64374814]
[1748371008347,8.852e-05,178.37,178.35,0.03974814]
[1748371009256,8.852e-05,178.37,178.36,5.6038]
[1748371014160,8.852e-05,178.37,178.36,35.8038]
[1748371017168,5.601,178.46,178.36,30.2]
[1748371017352,5.601,178.46,178.37,112.04]
[1748371017967,5.601,178.45,178.38,3.9548]
[1748371018262,0.03937114,178.43,178.4,0.04082313]
[1748371019158,5.64107114,178.43,178.4,5.64312313]
[1748371020764,5.64107114,178.43,178.41,5.6022]
[1748371020959,0.03937114,178.43,178.41,5.6022]
[1748371021160,0.03937114,178.43,178.4,0.04082313]
[1748371021556,0.03937114,178.43,178.42,5.602]
[1748371022465,30.2,178.52,178.42,30.2]
[1748371022861,35.799,178.52,178.42,30.2]
[1748371023068,35.799,178.52,178.49,5.5998]
[1748371023271,30.2,178.52,178.42,30.2]
[1748371023466,0.03695273,178.49,178.45,0.03780859]
[1748371024777,0.03695273,178.49,178.48,5.6001]
[1748371029778,0.03695273,178.49,178.47,5.6003]
[1748371034867,5.63685273,178.49,178.46,5.6006]
[1748371035079,0.03695273,178.49,178.45,0.03780859]
[1748371035678,0.03695273,178.49,178.47,5.6003]
[1748371037680,0.03695273,178.49,178.45,0.03780859]
[1748371039185,0.03695273,178.49,178.48,5.6001]
[1748371040073,0.03695273,178.49,178.47,5.6003]
[1748371041076,0.03695273,178.49,178.48,5.6001]
[1748371054288,0.03695273,178.49,178.47,5.6003]
[1748371054491,0.03695273,178.49,178.45,0.03780859]
[1748371055181,5.6007,178.46,178.45,0.03780859]
[1748371055887,5.6017,178.43,178.4,5.6026]
[1748371056093,9.81927456,178.48,178.39,30.06]
[1748371056886,0.04089246,178.45,178.42,0.0405]
[1748371057494,0.04089246,178.45,178.44,5.6013]
[1748371057693,0.04089246,178.45,178.42,0.0405]
[1748371058186,5.6015,178.44,178.42,0.0405]
[1748371059290,5.6015,178.44,178.42,5.6424]
[1748371066797,0.04089246,178.45,178.43,5.6015]
[1748371068394,5.64209246,178.45,178.43,5.6015]
[1748371071505,5.64209246,178.45,178.42,5.6423]
[1748371072097,5.6014,178.44,178.42,5.6423]
[1748371072798,0.04089246,178.45,178.43,5.6015]
[1748371072998,0.04089246,178.45,178.42,0.0405]
[1748371073696,0.04089246,178.45,178.44,5.6013]
[1748371076813,32.0311,178.55,178.44,30.08]
[1748371077005,32.0311,178.55,178.44,141.88]
[1748371077207,30.08,178.55,178.46,9.81927456]
[1748371077402,30.08,178.55,178.54,5.5982]
[1748371077812,0.03786089,178.56,178.53,0.03672006]
[1748371078003,30.08,178.59,178.56,5.5974]
[1748371078205,30.11812635,178.59,178.56,5.5974]
[1748371078406,30.11812635,178.59,178.53,0.04088689]
[1748371079606,30.11812635,178.59,178.55,5.5977]
[1748371079802,30.11812635,178.59,178.53,0.04088689]
[1748371080206,30.11812635,178.59,178.56,5.5975]
[1748371080401,30.11812635,178.59,178.53,0.04088689]
[1748371081011,30.11812635,178.59,178.57,5.5972]
[1748371081410,0.03812635,178.59,178.53,0.04088689]
[1748371081705,0.03812635,178.59,178.58,5.5969]
[1748371082308,0.03812635,178.59,178.57,0.03681729]
[1748371082504,0.03812635,178.59,178.5,1.8617]
[1748371082817,30.06,178.58,178.51,5.599]
[1748371083003,30.06,178.58,178.49,30.06]
[1748371083411,30.06,178.58,178.5,5.5992]
[1748371083609,0.03724955,178.56,178.52,0.03728928]
[1748371084008,5.5985,178.53,178.52,0.03728928]
[1748371086407,35.5985,178.53,178.52,0.03728928]
[1748371088918,30.0,178.53,178.52,0.03728928]
[1748371089615,35.5985,178.53,178.52,0.03728928]
[1748371091417,30.0,178.53,178.52,0.03728928]
[1748371091916,1.8605,178.55,178.52,0.03728928]
[1748371092114,5.63484955,178.56,178.52,0.03728928]
[1748371092115,0.03724955,178.56,178.52,0.03728928]
[1748371092814,0.03724955,178.56,178.55,5.5979]
[1748371094510,0.03724955,178.56,178.54,5.5981]
[1748371095110,0.03724955,178.56,178.55,5.5979]
[1748371095719,0.03724955,178.56,178.54,5.5982]
[1748371096123,0.03724955,178.56,178.52,0.03728928]
[1748371096828,0.03724955,178.56,178.53,5.5983]
[1748371097123,0.03724955,178.56,178.52,0.03728928]
[1748371097321,0.03724955,178.56,178.54,5.598]
[1748371097823,0.03724955,178.56,178.52,0.03728928]
[1748371099120,0.03724955,178.56,178.54,5.598]
[1748371099320,0.03724955,178.56,178.52,0.03728928]
[1748371099721,0.03724955,178.56,178.54,5.598]
[1748371102220,0.03724955,178.56,178.55,5.5979]
[1748371104021,0.03724955,178.56,178.54,5.5981]
[1748371105227,0.03724955,178.56,178.55,5.5979]
[1748371128439,4.955e-05,178.56,178.55,35.5379]
[1748371138043,4.955e-05,178.56,178.55,5.5979]
[1748371138541,4.955e-05,178.56,178.52,0.03728928]
[1748371138931,5.59784955,178.56,178.53,5.5984]
[1748371139336,4.955e-05,178.56,178.52,0.03728928]
[1748371139533,4.955e-05,178.56,178.55,5.598]
[1748371149352,4.955e-05,178.56,178.54,5.5982]
[1748371151054,4.955e-05,178.56,178.55,5.598]
[1748371151950,4.955e-05,178.56,178.52,0.03728928]
[1748371152156,3.92504955,178.56,178.52,0.03728928]
[1748371152755,3.92504955,178.56,178.53,5.5983]
[1748371153857,9.52274955,178.56,178.53,5.5983]
[1748371154660,3.92504955,178.56,178.53,5.5983]
[1748371155356,3.92504955,178.56,178.54,5.5982]
[1748371155556,2.02184955,178.56,178.52,0.03728928]
[1748371155759,4.955e-05,178.56,178.52,0.03728928]
[1748371157047,4.955e-05,178.56,178.55,5.598]
[1748371162855,4.955e-05,178.56,178.52,0.03728928]
[1748371163361,9.81932411,178.56,178.52,0.03728928]
[1748371163562,9.81932411,178.56,178.46,29.88]
[1748371163563,3.8437,178.55,178.49,5.5997]
[1748371163764,29.88,178.54,178.46,29.88]
[1748371163956,5.599,178.52,178.48,5.6001]
[1748371164662,5.63576076,178.52,178.48,5.63995105]
[1748371164858,0.03676076,178.52,178.48,0.03985105]
[1748371166152,5.5997,178.5,178.48,0.03985105]
[1748371169163,5.5994,178.51,178.48,5.63995105]
[1748371169371,0.03676076,178.52,178.48,5.63995105]
[1748371170362,5.5994,178.51,178.48,5.63995105]
[1748371172463,5.63576076,178.52,178.49,5.5997]
[1748371174070,0.03676076,178.52,178.5,5.5995]
[1748371174967,5.63576076,178.52,178.49,5.5998]
[1748371175367,0.03676076,178.52,178.49,5.5998]
[1748371176670,5.63576076,178.52,178.48,5.63995105]
[1748371177471,5.63576076,178.52,178.49,5.5999]
[1748371177769,5.63576076,178.52,178.48,0.03985105]
[1748371178468,5.63576076,178.52,178.48,5.63985105]
[1748371178667,0.03676076,178.52,178.48,0.03985105]
[1748371179172,0.03676076,178.52,178.49,5.5996]
[1748371179369,5.63576076,178.52,178.49,5.5996]
[1748371180566,0.03676076,178.52,178.49,5.5996]
[1748371181363,5.63566076,178.52,178.49,5.5996]
[1748371183369,0.03676076,178.52,178.48,0.03985105]
[1748371183763,9.81927456,178.51,178.48,0.03985105]
[1748371183969,5.5999,178.49,178.48,0.03985105]
[1748371184165,29.82,178.49,178.42,29.88]
[1748371184666,5.6005,178.47,178.43,5.6016]
[1748371184866,5.6005,178.47,178.4,3.9564]
[1748371185074,0.03570058,178.45,178.4,3.9564]
[1748371185374,0.03570058,178.45,178.44,5.6012]
[1748371186676,29.82,178.49,178.48,5.6002]
[1748371187172,41.52757456,178.53,178.4,3.9564]
[1748371187366,47.12647456,178.53,178.4,3.9564]
[1748371187570,0.03619445,178.48,178.45,0.04040449]
[1748371188077,0.03619445,178.48,178.47,5.6005]
[1748371192973,0.03619445,178.48,178.45,0.04040449]
[1748371193880,0.03619445,178.48,178.45,5.64150449]
[1748371194679,5.63659445,178.48,178.45,0.04040449]
[1748371194975,0.03619445,178.48,178.45,0.04040449]
[1748371195181,5.6008,178.46,178.45,0.04040449]
[1748371195576,9.81927456,178.47,178.38,29.82]
[1748371195774,1.8859,178.46,178.34,33.7523]
[1748371195974,5.6018,178.43,178.34,33.7523]
[1748371196577,0.03849023,178.4,178.34,33.7523]
[1748371197377,0.03849023,178.4,178.34,3.9323]
[1748371197676,0.03849023,178.4,178.39,5.603]
[1748371198781,0.03849023,178.4,178.38,5.6032]
[1748371200077,0.03849023,178.4,178.37,5.6035]
[1748371200273,0.03849023,178.4,178.34,3.9323]
[1748371200478,0.03849023,178.4,178.33,29.82]
[1748371200677,0.03849023,178.4,178.35,5.604]
[1748371200875,0.03849023,178.4,178.33,29.82]
[1748371201083,5.64139023,178.4,178.33,29.82]
[1748371201483,5.64139023,178.4,178.36,5.6038]
[1748371202578,0.03849023,178.4,178.37,5.6036]
[1748371202784,0.03849023,178.4,178.33,29.82]
[1748371203187,0.03849023,178.4,178.39,5.603]
[1748371209982,0.03849023,178.4,178.33,29.82]
[1748371210978,5.6034,178.38,178.35,5.6041]
[1748371211388,5.6037,178.37,178.34,5.6045]
[1748371211791,29.76,178.36,178.24,62.0]
[1748371211990,5.6058,178.3,178.23,1.9588]
[1748371212282,0.03564278,178.28,178.2,1.9719]
[1748371213091,0.03564278,178.28,178.02,29.74720841]
[1748371213092,9.81927456,178.27,178.02,29.74720841]
[1748371213288,0.04017983,178.16,178.08,9.81927456]
[1748371213587,7.983e-05,178.16,178.15,5.6106]
[1748371215576,7.983e-05,178.16,178.15,11.2306]
[1748371215981,29.76,178.25,178.15,5.62]
[1748371216178,29.76,178.25,178.14,29.76]
[1748371216689,29.76,178.25,178.22,5.6081]
[1748371216886,29.76,178.25,178.14,29.76]
[1748371217090,0.04176483,178.21,178.18,0.03743384]
[1748371218292,0.04176483,178.21,178.2,5.609]
[1748371222396,29.76,178.25,178.24,5.6077]
[1748371222591,29.78,178.29,178.19,1.9831]
[1748371222889,35.3862,178.29,178.19,1.9831]
[1748371223597,0.03902348,178.26,178.22,0.03709379]
[1748371224089,0.03902348,178.26,178.25,5.6074]
[1748371224693,0.03902348,178.26,178.24,5.6076]
[1748371225897,0.03902348,178.26,178.25,5.6074]
[1748371228392,0.03902348,178.26,178.22,0.03709379]
[1748371228791,9.81927456,178.25,178.22,0.03709379]
[1748371228989,5.6081,178.23,178.22,0.03709379]
[1748371231204,5.61,178.17,178.05,31.22]
[1748371231495,31.22,178.19,178.06,5.8525]
[1748371231702,36.8297,178.18,178.06,5.8525]
[1748371231995,31.24,178.2,178.06,5.8525]
[1748371232193,0.0425566,178.15,178.11,0.03658856]
[1748371232695,0.0425566,178.15,178.11,5.64838856]
[1748371232992,0.0425566,178.15,178.13,5.6112]
[1748371233199,0.0425566,178.15,178.11,0.03658856]
[1748371233697,0.0425566,178.15,178.13,5.6112]
[1748371233998,0.0425566,178.15,178.11,0.03658856]
[1748371238792,0.0425566,178.15,178.12,5.6113]
[1748371239401,0.0425566,178.15,178.11,0.03658856]
[1748371239599,32.7225566,178.15,178.11,0.03658856]
[1748371240106,5.6112,178.14,178.11,0.03658856]
[1748371240309,42.54183116,178.15,178.11,0.03658856]
[1748371240496,32.7225566,178.15,178.11,0.03658856]